bitfinex-derivatives/quotes_SOLF0:USTF0_20240912
["timestamp","ask_amount","ask_price","bid_price","bid_amount"]
[1726155572926,3.3474,134.44,134.37,21.60942279]
[1726155573616,3.3472,134.45,134.37,21.60942279]
[1726155573814,7.5822,134.48,134.37,21.60942279]
[1726155574012,7.5822,134.48,134.41,3.3479]
[1726155574617,7.5822,134.48,134.39,17.82]
[1726155574826,7.5822,134.48,134.41,17.82]
[1726155575323,7.5822,134.48,134.44,3.3472]
[1726155575517,7.5822,134.48,134.45,3.66899784]
[1726155575719,7.5822,134.48,134.43,3.3476]
[1726155575918,7.5822,134.48,134.44,3.80924038]
[1726155576318,10.9287,134.48,134.43,3.3476]
[1726155577018,3.3466,134.47,134.44,3.69057361]
[1726155577727,3.3466,134.47,134.41,17.82]
[1726155578331,10.9286,134.48,134.43,3.3474]
[1726155578519,10.9286,134.48,134.44,3.78849423]
[1726155579118,10.9286,134.48,134.44,3.3473]
[1726155579335,7.5822,134.48,134.45,3.68287605]
[1726155579515,40.17,134.53,134.43,17.82]
[1726155579920,3.346,134.5,134.43,17.82]
[1726155580124,17.82,134.53,134.43,17.82]
[1726155580324,25.5026,134.55,134.45,17.82]
[1726155580527,47.8526,134.55,134.45,21.5590322]
[1726155580829,3.3453,134.52,134.48,3.3463]
[1726155581237,25.5026,134.55,134.47,3.3465]
[1726155581822,3.3453,134.52,134.48,3.3462]
[1726155582015,25.5026,134.55,134.48,3.3462]
[1726155582724,25.5026,134.55,134.45,21.5590322]
[1726155582725,7.6826,134.55,134.47,17.82]
[1726155582936,7.6826,134.55,134.49,17.82]
[1726155583133,11.0273,134.55,134.52,3.3453]
[1726155583329,5.1417,134.55,134.49,17.82]
[1726155583834,8.4865,134.55,134.51,3.3455]
[1726155584021,5.1417,134.55,134.52,3.74377277]
[1726155584222,5.1417,134.55,134.49,17.82]
[1726155585531,3.345,134.54,134.49,17.82]
[1726155585831,3.345,134.54,134.47,17.82]
[1726155586233,5.1417,134.55,134.48,3.3462]
[1726155586429,5.1417,134.55,134.47,21.44436812]
[1726155586624,2.5398,134.54,134.47,21.44436812]
[1726155586819,3.3451,134.53,134.47,21.44436812]
[1726155587024,3.3451,134.53,134.49,3.3461]
[1726155588137,3.3455,134.52,134.48,3.3462]
[1726155588838,2.5398,134.54,134.47,3.62436812]
[1726155589022,5.8849,134.54,134.5,3.3458]
[1726155589739,3.3452,134.53,134.49,3.3459]
[1726155589935,2.5398,134.54,134.49,3.3459]
[1726155590238,3.3452,134.53,134.49,3.3459]
[1726155590733,5.8847,134.54,134.5,3.3458]
[1726155590937,2.5025,134.55,134.49,17.82]
[1726155591127,5.0705,134.59,134.51,17.82]
[1726155591322,5.0705,134.59,134.54,3.3448]
[1726155591533,5.0705,134.59,134.55,3.68178078]
[1726155591534,3.3439,134.58,134.55,3.68178078]
[1726155591730,5.0705,134.59,134.54,3.3448]
[1726155592231,3.3442,134.57,134.54,3.3448]
[1726155592438,5.0705,134.59,134.53,3.3451]
[1726155593331,3.3443,134.57,134.53,3.3451]
[1726155593732,5.0705,134.59,134.54,7.09414553]
[1726155593933,5.0705,134.59,134.54,3.3447]
[1726155594632,5.0705,134.59,134.54,3.69119033]
[1726155594830,5.0705,134.59,134.5,17.82]
[1726155596242,5.0705,134.59,134.53,3.3449]
[1726155596833,3.3443,134.57,134.53,3.3449]
[1726155597042,5.0705,134.59,134.53,3.3449]
[1726155597536,3.3443,134.57,134.54,7.06153851]
[1726155597942,3.3443,134.57,134.5,17.82]
[1726155598149,3.3443,134.57,134.53,3.3449]
[1726155599233,3.3444,134.56,134.53,3.3449]
[1726155600241,27.4205,134.59,134.51,3.3455]
[1726155600438,5.0705,134.59,134.5,17.82]
[1726155600835,3.3443,134.57,134.53,3.345]
[1726155601342,27.4205,134.59,134.52,3.3452]
[1726155601535,17.82,134.58,134.52,3.3452]
[1726155603344,17.82,134.58,134.51,3.3455]
[1726155603545,3.3449,134.54,134.51,3.3455]
[1726155603843,17.82,134.58,134.52,3.3453]
[1726155604243,17.82,134.58,134.48,21.1208]
[1726155604547,3.3445,134.56,134.52,3.3452]
[1726155605336,3.3442,134.57,134.5,17.82]
[1726155606042,3.344,134.58,134.54,3.3448]
[1726155606235,5.0705,134.59,134.52,17.82]
[1726155606236,5.0705,134.59,134.55,3.66916902]
[1726155606439,5.0705,134.59,134.55,3.3444]
[1726155606440,2.5639,134.59,134.55,3.3444]
[1726155606636,2.5639,134.59,134.55,7.09830218]
[1726155606838,2.5639,134.59,134.55,3.3444]
[1726155607334,2.5639,134.59,134.56,3.78864447]
[1726155607937,5.9076,134.59,134.56,3.78864447]
[1726155608348,5.9076,134.59,134.54,3.3448]
[1726155608548,5.9076,134.59,134.54,3.63258026]
[1726155608749,5.9076,134.59,134.55,3.3445]
[1726155608941,5.9076,134.59,134.56,3.72101664]
[1726155609450,2.5639,134.59,134.56,7.06531664]
[1726155609644,2.5639,134.59,134.56,3.72101664]
[1726155609849,2.5639,134.59,134.52,17.82]
[1726155610351,5.9075,134.59,134.52,17.82]
[1726155610961,2.3889,134.61,134.55,3.3446]
[1726155611252,2.3889,134.61,134.56,3.7106118]
[1726155611648,3.3438,134.59,134.52,17.82]
[1726155611953,2.3889,134.61,134.52,17.82]
[1726155612247,3.3438,134.59,134.52,17.82]
[1726155612551,3.3438,134.59,134.55,3.3446]
[1726155612744,3.3434,134.6,134.55,3.64409207]
[1726155612940,2.5377,134.63,134.54,17.82]
[1726155613146,2.5377,134.63,134.56,17.82]
[1726155613347,2.5377,134.63,134.58,17.82]
[1726155613547,2.4148,134.64,134.6,3.3433]
[1726155614245,5.7573,134.64,134.6,3.3433]
[1726155614443,2.598,134.67,134.58,17.82]
[1726155614649,2.598,134.67,134.6,17.82]
[1726155615049,2.598,134.67,134.62,3.3428]
[1726155615244,3.68239227,134.71,134.62,17.82]
[1726155615450,17.82,134.73,134.62,21.52022288]
[1726155615645,3.341,134.7,134.64,17.82]
[1726155616051,21.61569093,134.73,134.64,21.1623]
[1726155616247,3.3412,134.69,134.64,21.1623]
[1726155616553,21.61569093,134.73,134.64,21.1623]
[1726155617153,17.82,134.73,134.64,17.82]
[1726155617349,3.3412,134.69,134.64,17.82]
[1726155617656,3.3412,134.69,134.64,21.1622]
[1726155617847,17.82,134.73,134.64,21.1622]
[1726155618044,17.82,134.73,134.62,21.52022288]
[1726155618356,17.82,134.73,134.63,3.3425]
[1726155618545,3.3416,134.68,134.63,3.3425]
[1726155618852,3.3416,134.68,134.62,17.82]
[1726155619152,17.82,134.73,134.64,3.3422]
[1726155620752,17.82,134.73,134.64,17.82]
[1726155621362,17.82,134.73,134.65,3.342]
[1726155622658,3.3409,134.7,134.64,17.82]
[1726155623151,3.3409,134.7,134.66,3.3417]
[1726155623556,7.2339,134.74,134.66,3.3417]
[1726155624655,3.3411,134.69,134.66,3.3417]
[1726155624860,3.3411,134.69,134.65,3.342]
[1726155625560,3.3414,134.68,134.65,3.342]
[1726155626271,3.3416,134.67,134.64,3.3423]
[1726155626452,17.82,134.71,134.64,3.3423]
[1726155626757,3.3415,134.68,134.64,3.3423]
[1726155628059,3.3417,134.67,134.64,3.3423]
[1726155630054,3.3417,134.67,134.63,3.3425]
[1726155630261,3.3414,134.68,134.64,11.4]
[1726155630457,11.4,134.71,134.65,14.742]
[1726155630764,11.4,134.71,134.65,11.4]
[1726155630960,3.3413,134.69,134.65,11.4]
[1726155631156,7.2339,134.74,134.67,14.7416]
[1726155631359,11.4,134.73,134.68,3.69736353]
[1726155631565,3.3408,134.71,134.68,7.03876353]
[1726155632365,7.2339,134.74,134.7,3.3408]
[1726155633274,17.83,134.78,134.71,3.3406]
[1726155633585,3.3403,134.73,134.68,21.52736353]
[1726155633772,3.3403,134.73,134.7,3.3408]
[1726155636770,3.3404,134.72,134.68,3.69736353]
[1726155636970,3.3404,134.72,134.66,17.83]
[1726155637376,3.3404,134.72,134.68,3.3412]
[1726155637570,3.3407,134.71,134.66,21.51411002]
[1726155637877,3.3407,134.71,134.67,3.3414]
[1726155638183,3.3407,134.71,134.66,21.51411002]
[1726155638875,3.3407,134.71,134.67,3.3415]
[1726155639478,17.83,134.76,134.69,3.3409]
[1726155639671,22.8985,134.78,134.69,3.3409]
[1726155640385,17.83,134.76,134.69,3.3409]
[1726155640680,3.3405,134.72,134.69,3.3409]
[1726155641471,17.83,134.76,134.66,3.68411002]
[1726155641672,17.83,134.76,134.65,17.83]
[1726155641874,3.3409,134.7,134.67,3.3415]
[1726155642275,17.83,134.74,134.65,3.79947412]
[1726155642577,17.83,134.74,134.64,17.83]
[1726155642578,3.3411,134.7,134.64,17.83]
[1726155643184,23.0089,134.72,134.64,3.63527587]
[1726155643478,23.0089,134.72,134.6,3.3036]
[1726155643479,23.0089,134.72,134.62,17.83]
[1726155643675,3.3416,134.68,134.64,3.3422]
[1726155644880,23.0089,134.72,134.62,21.48458282]
[1726155644881,3.3416,134.67,134.63,3.3425]
[1726155646984,3.3415,134.68,134.64,3.3423]
[1726155647189,3.3415,134.68,134.62,21.48458282]
[1726155649184,3.3415,134.68,134.64,3.3422]
[1726155649886,3.3413,134.69,134.64,17.83]
[1726155650087,5.1789,134.72,134.64,17.83]
[1726155650469,3.3408,134.71,134.66,3.3418]
[1726155650784,5.1789,134.72,134.66,17.83]
[1726155650981,2.6142,134.73,134.69,3.3411]
[1726155651280,5.1077,134.76,134.68,17.83]
[1726155652776,3.34,134.74,134.69,3.341]
[1726155652985,3.34,134.74,134.7,3.704624]
[1726155653379,3.34,134.74,134.69,3.341]
[1726155653578,3.3398,134.75,134.7,7.08430051]
[1726155653782,5.1077,134.76,134.68,17.83]
[1726155654180,3.34,134.74,134.7,3.3408]
[1726155654380,3.34,134.74,134.7,7.0224093]
[1726155656088,3.3402,134.73,134.7,3.6816093]
[1726155656284,3.3402,134.73,134.69,3.3411]
[1726155656485,3.3402,134.73,134.69,7.05398609]
[1726155657491,3.3404,134.72,134.68,3.3412]
[1726155657888,45.2877,134.76,134.69,3.68801722]
[1726155658084,3.3399,134.74,134.7,3.3409]
[1726155658285,3.3399,134.74,134.7,7.05081667]
[1726155658587,45.2877,134.76,134.7,3.3409]
[1726155658588,3.3402,134.73,134.7,3.3409]
[1726155658983,3.3402,134.73,134.7,7.12440285]
[1726155659190,3.3402,134.73,134.7,3.3409]
[1726155659392,3.3404,134.72,134.69,3.3411]
[1726155659593,3.3404,134.72,134.66,17.83]
[1726155659594,22.35,134.74,134.66,17.83]
[1726155659899,3.3408,134.71,134.67,3.3414]
[1726155660083,40.18,134.74,134.64,17.83]
[1726155660281,40.18,134.74,134.64,21.61053307]
[1726155660594,45.2177,134.76,134.66,17.83]
[1726155660978,3.3406,134.72,134.66,21.59902516]
[1726155661378,45.2177,134.76,134.66,21.59902516]
[1726155661786,45.2177,134.76,134.69,3.3409]
[1726155662694,3.3404,134.72,134.69,3.3409]
[1726155663080,3.3404,134.72,134.7,3.3408]
[1726155663585,27.3877,134.76,134.68,17.83]
[1726155663785,5.1077,134.76,134.72,3.3403]
[1726155664194,3.3399,134.74,134.71,3.3405]
[1726155665096,27.3877,134.76,134.68,17.83]
[1726155665483,3.3403,134.73,134.7,3.3407]
[1726155665679,27.3877,134.76,134.7,3.3407]
[1726155666087,3.3401,134.74,134.7,3.3408]
[1726155666589,45.2177,134.76,134.66,21.59902516]
[1726155666899,22.28,134.74,134.66,17.83]
[1726155667101,22.28,134.74,134.66,21.54130569]
[1726155667486,3.3405,134.72,134.69,3.341]
[1726155667893,3.3405,134.72,134.66,21.54130569]
[1726155668090,3.3407,134.71,134.66,21.54130569]
[1726155668493,22.28,134.73,134.63,17.83]
[1726155668693,3.3414,134.68,134.61,21.57712647]
[1726155668899,3.3414,134.68,134.61,17.83]
[1726155669097,4.9409,134.7,134.61,17.83]
[1726155669398,4.9409,134.7,134.61,21.59346191]
[1726155671599,3.3415,134.68,134.61,21.59346191]
[1726155672401,27.2209,134.7,134.61,3.76346191]
[1726155672602,27.2209,134.7,134.51,241.12]
[1726155672603,17.83,134.67,134.57,17.83]
[1726155672905,2.5646,134.66,134.57,17.83]
[1726155673607,3.3425,134.64,134.57,17.83]
[1726155673796,2.5646,134.66,134.57,17.83]
[1726155674603,3.3427,134.63,134.59,3.3435]
[1726155675306,3.3425,134.64,134.6,3.3433]
[1726155675505,3.3425,134.64,134.61,3.69707324]
[1726155675803,3.3425,134.64,134.58,7.429]
[1726155675992,3.3425,134.64,134.61,3.3431]
[1726155676188,3.3425,134.64,134.61,7.11779915]
[1726155676403,3.3425,134.64,134.61,3.3431]
[1726155676603,3.3422,134.65,134.61,3.3431]
[1726155677007,3.3422,134.65,134.61,7.00451732]
[1726155677506,3.3422,134.65,134.62,3.3428]
[1726155677809,2.5646,134.66,134.62,3.3428]
[1726155677810,5.9065,134.66,134.62,3.3428]
[1726155678509,3.3415,134.68,134.61,21.49141732]
[1726155678699,4.9409,134.7,134.61,17.83]
[1726155679010,4.9409,134.7,134.64,3.3422]
[1726155679197,3.3415,134.68,134.64,3.3422]
[1726155679516,4.9409,134.7,134.64,3.3422]
[1726155680102,4.9409,134.7,134.65,3.3421]
[1726155681500,4.9409,134.7,134.61,21.53635782]
[1726155681701,27.2209,134.7,134.61,21.53635782]
[1726155682010,4.9409,134.7,134.61,21.53635782]
[1726155682205,4.9409,134.7,134.63,17.83]
[1726155682412,2.4877,134.7,134.65,17.83]
[1726155682705,5.8346,134.72,134.68,3.3413]
[1726155683505,3.3406,134.72,134.65,21.48985889]
[1726155683706,3.3402,134.73,134.65,21.48985889]
[1726155683904,4.9169,134.74,134.68,3.3412]
[1726155684302,3.3405,134.72,134.68,3.3412]
[1726155685110,3.3401,134.73,134.65,21.48985889]
[1726155685713,3.3401,134.73,134.67,17.83]
[1726155686514,3.3401,134.73,134.68,3.3411]
[1726155689217,3.3401,134.73,134.69,3.3411]
[1726155689712,3.3404,134.72,134.69,3.3411]
[1726155691615,17.83,134.79,134.69,17.83]
[1726155691807,7.4547,134.78,134.71,17.83]
[1726155692008,3.3392,134.77,134.71,17.83]
[1726155692414,7.4547,134.78,134.68,17.83]
[1726155692613,3.3398,134.75,134.71,3.3405]
[1726155692819,3.3398,134.75,134.72,3.72039498]
[1726155693011,7.4547,134.78,134.68,17.83]
[1726155693012,25.2847,134.78,134.68,17.83]
[1726155693208,3.3398,134.75,134.71,3.3406]
[1726155693412,25.2847,134.78,134.68,17.83]
[1726155694016,3.3398,134.75,134.71,3.3405]
[1726155694619,3.3399,134.74,134.71,3.3405]
[1726155695024,3.3403,134.73,134.66,18.2492]
[1726155696015,3.3403,134.73,134.69,3.3409]
[1726155699129,3.3403,134.73,134.7,3.3408]
[1726155700929,3.34,134.74,134.71,11.41]
[1726155701125,11.41,134.75,134.69,11.41]
[1726155701327,11.41,134.73,134.68,11.41]
[1726155701524,11.41,134.73,134.68,14.7513]
[1726155702630,3.3408,134.71,134.68,14.7513]
[1726155702825,2.4089,134.75,134.71,3.3406]
[1726155703029,2.4089,134.75,134.71,15.07527629]
[1726155703228,2.4089,134.75,134.71,11.41]
[1726155703727,5.7487,134.75,134.72,7.07823244]
[1726155704117,16.3298,134.78,134.72,15.14803244]
[1726155704321,4.9198,134.78,134.73,11.41]
[1726155704728,16.3298,134.78,134.73,3.3401]
[1726155705026,16.3298,134.78,134.72,11.41]
[1726155705325,3.3396,134.76,134.72,14.7502]
[1726155705922,11.41,134.77,134.64,0.4203]
[1726155706129,11.41,134.77,134.69,11.41]
[1726155706130,11.41,134.76,134.69,11.41]
[1726155706422,11.41,134.76,134.7,3.63790829]
[1726155706625,33.69,134.76,134.7,3.3407]
[1726155706825,13.8738,134.75,134.7,6.96190531]
[1726155707031,3.34,134.74,134.71,3.3406]
[1726155708232,3.34,134.74,134.7,6.96200531]
[1726155708424,13.8738,134.75,134.7,3.62120531]
[1726155708738,4.9198,134.78,134.73,3.34]
[1726155708924,4.9198,134.78,134.72,11.41]
[1726155709226,11.41,134.77,134.71,11.41]
[1726155709426,11.41,134.77,134.72,3.3402]
[1726155709630,3.3398,134.75,134.71,3.65795186]
[1726155709823,33.69,134.77,134.67,1.6282]
[1726155710025,33.69,134.77,134.71,14.7505]
[1726155710227,4.9198,134.78,134.72,15.11472019]
[1726155710532,11.41,134.77,134.72,3.3403]
[1726155710740,33.69,134.77,134.72,3.3403]
[1726155710944,3.3398,134.75,134.72,7.08482608]
[1726155711830,3.3398,134.75,134.71,14.7505]
[1726155712228,3.3398,134.75,134.71,18.5454974]
[1726155713639,3.3399,134.74,134.71,14.7505]
[1726155714039,3.3399,134.74,134.71,18.38591898]
[1726155714541,3.3403,134.73,134.71,15.04541898]
[1726155715228,2.5233,134.76,134.71,15.04541898]
[1726155715528,2.5233,134.76,134.71,18.38581898]
[1726155715734,3.3398,134.75,134.71,15.04541898]
[1726155716129,3.3398,134.75,134.72,3.3403]
[1726155716439,2.5233,134.76,134.71,15.04541898]
[1726155716440,3.3399,134.74,134.71,15.04541898]
[1726155716823,2.5233,134.76,134.72,11.41]
[1726155717027,4.9198,134.78,134.73,11.41]
[1726155717224,4.9198,134.78,134.73,15.21158847]
[1726155717635,3.3393,134.77,134.73,18.55148847]
[1726155717836,4.9198,134.78,134.73,18.55148847]
[1726155718132,3.3396,134.76,134.73,14.7499]
[1726155718727,3.3396,134.76,134.73,18.41750688]
[1726155720232,3.3396,134.76,134.73,14.7499]
[1726155720435,33.69,134.77,134.71,6.98910196]
[1726155720637,11.41,134.75,134.64,0.4203]
[1726155720942,11.41,134.75,134.69,11.41]
[1726155721242,11.41,134.75,134.7,3.78173482]
[1726155721934,3.3404,134.72,134.69,14.7511]
[1726155722130,11.41,134.74,134.67,11.41]
[1726155722536,11.41,134.73,134.64,2.0507]
[1726155722732,11.41,134.73,134.66,11.41]
[1726155722932,16.5193,134.73,134.66,11.41]
[1726155723340,11.41,134.7,134.63,4.95062557]
[1726155723541,3.3413,134.69,134.64,14.7522]
[1726155724336,3.3413,134.69,134.65,7.06945372]
[1726155724531,3.3413,134.69,134.65,3.72735372]
[1726155725440,3.3413,134.69,134.65,7.06945372]
[1726155725649,11.41,134.7,134.65,11.41]
[1726155725650,3.3409,134.7,134.65,11.41]
[1726155725950,11.41,134.71,134.65,14.7519]
[1726155726149,11.41,134.71,134.66,3.79974754]
[1726155726741,3.3411,134.69,134.66,3.79974754]
[1726155729850,3.3414,134.68,134.65,3.3419]
[1726155730147,11.41,134.7,134.65,3.3419]
[1726155730354,3.3413,134.69,134.65,7.14703886]
[1726155731746,3.3414,134.68,134.65,7.14703886]
[1726155732554,5.1093,134.73,134.65,15.21513886]
[1726155732754,11.41,134.72,134.65,15.21513886]
[1726155733347,3.341,134.7,134.66,3.3417]
[1726155734853,11.41,134.72,134.67,3.3416]
[1726155735058,11.41,134.72,134.65,15.21513886]
[1726155735261,3.341,134.7,134.65,15.21513886]
[1726155735561,3.341,134.7,134.66,3.3417]
[1726155735752,11.41,134.72,134.66,3.3417]
[1726155735961,3.3413,134.69,134.65,15.21513886]
[1726155736458,16.5193,134.73,134.67,11.41]
[1726155737161,16.5193,134.73,134.67,14.7515]
[1726155737364,16.5193,134.73,134.65,22.64413886]
[1726155737562,16.5193,134.73,134.65,15.21513886]
[1726155737760,3.3409,134.71,134.67,3.3415]
[1726155737958,16.5193,134.73,134.67,3.3415]
[1726155738573,3.3408,134.71,134.67,3.3415]
[1726155739571,3.3409,134.7,134.67,3.3415]
[1726155739770,16.5193,134.73,134.66,3.3417]
[1726155740067,3.3412,134.69,134.66,3.3417]
[1726155740268,11.41,134.71,134.65,3.80513886]
[1726155740574,3.3414,134.68,134.65,3.342]
[1726155741170,3.3414,134.68,134.65,7.09311375]
[1726155741565,3.3416,134.67,134.64,3.3423]
[1726155741974,3.3416,134.67,134.63,11.41]
[1726155742776,3.3416,134.67,134.64,7.0428237]
[1726155743175,11.41,134.67,134.63,3.7538987]
[1726155743370,11.41,134.67,134.61,14.753]
[1726155743569,3.3428,134.63,134.57,1.6291]
[1726155743876,3.3428,134.63,134.49,227.0]
[1726155743877,11.41,134.63,134.58,3.3437]
[1726155744077,11.41,134.63,134.52,0.4184]
[1726155744078,11.41,134.63,134.57,11.41]
[1726155744274,14.7528,134.63,134.57,11.41]
[1726155744473,11.41,134.63,134.57,11.41]
[1726155744878,11.41,134.63,134.58,3.62765483]
[1726155745178,11.41,134.63,134.57,11.41]
[1726155745777,11.41,134.63,134.59,3.3435]
[1726155746184,3.3431,134.61,134.57,3.65104708]
[1726155746386,11.41,134.62,134.56,18.839]
[1726155746872,11.41,134.61,134.57,3.80320927]
[1726155747268,11.41,134.61,134.55,11.41]
[1726155747581,2.4278,134.62,134.55,3.3444]
[1726155747582,11.41,134.6,134.55,3.3444]
[1726155747780,11.41,134.58,134.54,3.80135205]
[1726155748085,14.7539,134.58,134.52,11.41]
[1726155748276,11.41,134.58,134.52,15.0527457]
[1726155748675,14.7539,134.58,134.54,3.3448]
[1726155748971,11.41,134.58,134.52,22.4817457]
[1726155749175,2.4278,134.62,134.55,3.3444]
[1726155749176,14.7535,134.6,134.55,3.3444]
[1726155749376,11.41,134.6,134.55,3.3444]
[1726155749790,3.3438,134.59,134.54,3.3448]
[1726155750585,11.41,134.58,134.54,3.3448]
[1726155751286,14.7539,134.58,134.54,3.3448]
[1726155751485,11.41,134.57,134.52,11.0717457]
[1726155751781,11.41,134.56,134.52,3.6427457]
[1726155751980,11.41,134.56,134.5,11.41]
[1726155752585,11.41,134.56,134.5,15.13919143]
[1726155753887,14.7542,134.57,134.53,3.3451]
[1726155755587,11.41,134.57,134.54,3.3448]
[1726155755984,11.41,134.57,134.51,18.839]
[1726155756484,11.41,134.57,134.51,7.429]
[1726155756691,13.5756,134.57,134.51,7.429]
[1726155756992,3.3444,134.56,134.51,7.429]
[1726155757489,16.9198,134.57,134.53,3.345]
[1726155758291,2.1656,134.57,134.54,3.3448]
[1726155759084,2.1656,134.57,134.55,3.3446]
[1726155759286,2.1656,134.57,134.52,11.41]
[1726155759685,2.1656,134.57,134.54,3.3448]
[1726155761292,2.1656,134.57,134.55,3.3446]
[1726155762583,2.4278,134.62,134.54,11.41]
[1726155762789,2.4278,134.62,134.56,11.41]
[1726155762985,13.8378,134.62,134.56,15.12822506]
[1726155763193,3.3431,134.61,134.58,3.3437]
[1726155763383,14.7531,134.61,134.58,3.3437]
[1726155763587,14.7531,134.61,134.56,3.71822506]
[1726155763588,11.41,134.61,134.56,3.71822506]
[1726155763893,11.41,134.61,134.57,3.344]
[1726155764388,11.41,134.61,134.58,3.3438]
[1726155764590,13.8378,134.62,134.56,11.41]
[1726155765090,11.41,134.61,134.56,11.41]
[1726155765295,11.41,134.61,134.56,15.1772811]
[1726155765886,14.7532,134.61,134.57,3.344]
[1726155767595,3.3434,134.6,134.56,7.1115811]
[1726155767795,11.41,134.61,134.56,7.1115811]
[1726155768192,3.3435,134.6,134.56,7.1115811]
[1726155768389,11.41,134.61,134.56,7.1115811]
[1726155768594,11.41,134.6,134.56,7.1115811]
[1726155768794,11.41,134.6,134.53,11.41]
[1726155768795,3.3438,134.59,134.53,11.41]
[1726155769092,11.41,134.59,134.52,11.41]
[1726155769590,14.7542,134.57,134.52,11.41]
[1726155769899,14.7542,134.57,134.51,15.06386044]
[1726155770090,11.41,134.56,134.44,0.4228]
[1726155770287,11.41,134.55,134.49,11.41]
[1726155770498,11.41,134.55,134.49,15.17049639]
[1726155770695,14.7547,134.55,134.51,3.3455]
[1726155770899,3.3447,134.55,134.51,3.3455]
[1726155771099,14.7547,134.55,134.51,3.3455]
[1726155772591,11.41,134.55,134.51,3.3455]
[1726155772798,11.41,134.55,134.52,3.3452]
[1726155773483,14.7545,134.56,134.52,3.3452]
[1726155773685,11.41,134.56,134.52,3.3452]
[1726155773889,3.3447,134.55,134.51,3.3455]
[1726155778589,22.28,134.59,134.44,0.4228]
[1726155778888,11.41,134.52,134.45,11.41]
[1726155779196,11.41,134.53,134.48,3.3463]
[1726155779396,11.41,134.53,134.49,3.8043559]
[1726155779902,3.3454,134.52,134.48,3.3463]
[1726155780993,14.7552,134.53,134.49,3.3461]
[1726155784202,11.41,134.5,134.48,3.3463]
[1726155785599,11.41,134.49,134.43,11.41]
[1726155785805,11.41,134.49,134.43,15.20368029]
[1726155786201,11.41,134.49,134.46,3.3467]
[1726155786503,14.7564,134.48,134.43,3.79368029]
[1726155786697,14.7564,134.48,134.39,0.4007]
[1726155786698,14.7564,134.48,134.4,11.41]
[1726155786899,14.7564,134.48,134.4,3.74869888]
[1726155787209,11.41,134.48,134.44,3.3471]
[1726155787502,13.4225,134.48,134.44,3.3471]
[1726155787701,11.41,134.46,134.4,15.13973977]
[1726155788100,11.41,134.45,134.4,3.72973977]
[1726155788301,11.41,134.42,134.36,11.41]
[1726155789194,11.41,134.42,134.39,3.3483]
[1726155789607,11.41,134.42,134.34,0.4014]
[1726155789905,11.41,134.41,134.37,3.3491]
[1726155791212,11.41,134.41,134.38,3.3488]
[1726155791399,15.5786,134.42,134.38,3.3488]
[1726155792295,4.1686,134.42,134.39,3.3484]
[1726155792503,4.1686,134.42,134.38,11.41]
[1726155793109,4.1686,134.42,134.4,3.3483]
[1726155793110,2.1068,134.42,134.4,3.3483]
[1726155793304,2.0975,134.43,134.4,3.78376367]
[1726155793604,2.0975,134.43,134.38,11.41]
[1726155794205,2.0975,134.43,134.41,3.348]
[1726155794612,2.0975,134.43,134.4,7.07979319]
[1726155794801,2.0975,134.43,134.4,3.3483]
[1726155795406,13.5075,134.43,134.39,3.3485]
[1726155795712,11.41,134.42,134.39,3.3485]